fUSD/lending_fUSD_20241003
["ID","MTS","AMOUNT","RATE_DAILY","PERIOD"]
[339770267,1727975431764,-216.60769157,0.000108,2]
[339770268,1727975431787,-1906.05070843,0.000108,2]
[339770269,1727975431797,-401.94,0.000108,2]
[339770270,1727975431807,-7159.10387429,0.000108,2]
[339770271,1727975431816,-500.0,0.00010873,2]
[339770272,1727975431826,-391.80936884,0.00010873,2]
[339770273,1727975431835,-500.0,0.00010873,2]
[339770274,1727975431845,-500.0,0.00010873,2]
[339770275,1727975431854,-1004.6299934,0.00010899,2]
[339770276,1727975431864,-2606.45594055,0.000109,2]
[339770277,1727975431876,-277.61067269,0.000109,2]
[339770278,1727975431887,-1096.73776496,0.000109,2]
[339770279,1727975431899,-1238.04,0.000109,2]
[339770280,1727975431911,-32487.36089944,0.000109,2]
[339770281,1727975431922,-7874.3179034,0.000109,2]
[339770282,1727975431941,-18986.91999953,0.000109,2]
[339770283,1727975431953,-3024.74527894,0.000109,2]
[339770284,1727975431964,-8224.72267876,0.000109,2]
[339770285,1727975431976,-3084.0,0.000109,2]
[339770286,1727975431987,-3273.10212446,0.000109,2]
[339770287,1727975432094,-9058.09230667,0.000109,2]
[339770288,1727975432106,-454.92529219,0.000109,2]
[339770289,1727975432120,-4268.90659672,0.000109,2]
[339770290,1727975432139,-638.67272336,0.000109,2]
[339770291,1727975432151,-124543.36361833,0.000109,2]
[339770292,1727975432162,-1003.9748,0.000109,2]
[339770293,1727975432172,-500.0,0.000109,2]
[339770294,1727975432181,-167.11,0.00010959,2]
[339770295,1727975432191,-162.89,0.00010959,2]
[339770296,1727975432201,-1000.0,0.00010999,2]
[339770297,1727975432211,-1000.0,0.00010999,2]
[339770298,1727975432221,-1000.0,0.00010999,2]
[339770299,1727975432231,-280.097,0.00010999,2]
[339770300,1727975432240,-672.39,0.00011,2]
[339770301,1727975432250,-375.0,0.00011,2]
[339770302,1727975432260,-150.0,0.00011021,2]
[339770303,1727975432269,-1650.02,0.00011021,2]
[339770304,1727975432279,-499.99,0.00011021,2]
[339770305,1727975432289,-695.12,0.00011021,2]
[339770306,1727975432298,-299.99,0.00011021,2]
[339770307,1727975432308,-743.23,0.00011021,2]
[339770308,1727975432318,-372.27,0.00011217,2]
[339770309,1727975432328,-150.99,0.00011421,2]
[339770310,1727975432338,-1264.0,0.00011421,2]
[339770311,1727975432347,-626.0,0.00011421,2]
[339770312,1727975432357,-449.0,0.00011421,2]
[339770313,1727975432367,-1297.0,0.00011421,2]
[339770314,1727975432377,-934.0,0.00011421,2]
[339770315,1727975432387,-559.0,0.00011421,2]
[339770316,1727975432397,-810.0,0.00011421,2]
[339770317,1727975432407,-554.0,0.00011421,2]
[339770318,1727975432418,-1905.0,0.00011421,2]
[339770319,1727975432428,-807.0,0.00011421,2]
[339770320,1727975432438,-3351.0,0.00011421,2]
[339770321,1727975432448,-1910.0,0.00011421,2]
[339770322,1727975432458,-5874.0,0.00011421,2]
[339770323,1727975432468,-150.0,0.00011421,2]
[339770324,1727975432478,-13507.0,0.00011421,2]
[339770325,1727975432487,-1148.0,0.00011421,2]
[339770326,1727975432497,-540.55438221,0.0001154,2]
[339770327,1727975432507,-222.64193873,0.00012242,2]
[339770328,1727975432517,-1032.20510209,0.00012328,2]
[339770329,1727975432527,-1000.0,0.00012499,2]
[339770330,1727975432536,-1000.24,0.000128,2]
[339770331,1727975432546,-1000.0,0.00012899,2]
[339770332,1727975432555,-1000.0,0.00012899,2]
[339770333,1727975432564,-500.0,0.0001304,2]
[339770334,1727975432574,-23880.0,0.00013082,2]
[339770335,1727975432584,-150.0,0.00013084,2]
[339770336,1727975432593,-242.03,0.00013094,2]
[339770337,1727975432603,-1500.0,0.00013149,2]
[339770338,1727975432612,-250.0,0.0001316,2]
[339770339,1727975432622,-1000.0,0.00013257,2]
[339770340,1727975432632,-502.78,0.00013315,2]
[339770341,1727975432641,-250.0,0.00013315,2]
[339770342,1727975432650,-200.0,0.00013392,2]
[339770343,1727975432660,-409.09761012,0.00013401,2]
[339770344,1727975432671,-1000.0,0.00013401,2]
[339770345,1727975432680,-1000.0,0.00013401,2]
[339770346,1727975432690,-1000.0,0.00013401,2]
[339770347,1727975432699,-1000.0,0.00013401,2]
[339770348,1727975432708,-1000.0,0.00013401,2]
[339770349,1727975432717,-1000.0,0.00013401,2]
[339770350,1727975432726,-1000.0,0.00013401,2]
[339770351,1727975432736,-1000.0,0.00013401,2]
[339770352,1727975432745,-1000.0,0.00013401,2]
[339770353,1727975432755,-1000.0,0.00013401,2]
[339770354,1727975432765,-372.27,0.00013481,2]
[339770355,1727975432774,-1004.62999336,0.00013516,2]
[339770356,1727975432784,-180.9,0.00013621,2]
[339770357,1727975432793,-250.0,0.00013698,2]
[339770358,1727975432802,-504.05,0.00013699,2]
[339770359,1727975432811,-200.0,0.00013699,2]
[339770360,1727975432820,-178.8,0.00013736,2]
[339770361,1727975432830,-1000.0,0.00013899,2]
[339770362,1727975432839,-2000.0,0.00013973,2]
[339770363,1727975432848,-222.98,0.00013994,2]
[339770364,1727975432858,-150.0,0.00014021,2]
[339770365,1727975432866,-1000.24,0.0001421,2]
[339770366,1727975432876,-3797.38399992,0.00014411,2]
[339770367,1727975432885,-500.0,0.0001442,2]
[339770368,1727975432895,-304.14536991,0.0001442,2]
[339770369,1727975432904,-500.0,0.0001442,2]
[339770370,1727975432914,-1264.0,0.00014421,2]
[339770371,1727975432923,-626.0,0.00014421,2]
[339770372,1727975432932,-449.0,0.00014421,2]
[339770373,1727975432942,-1297.0,0.00014421,2]
[339770374,1727975432951,-934.0,0.00014421,2]
[339770375,1727975432960,-559.0,0.00014421,2]
[339770376,1727975432970,-810.0,0.00014421,2]
[339770377,1727975432979,-554.0,0.00014421,2]
[339770378,1727975432989,-1905.0,0.00014421,2]
[339770379,1727975432999,-548.138,0.00014421,2]
[339770380,1727975433008,-3351.0,0.00014421,2]
[339770381,1727975433018,-1910.0,0.00014421,2]
[339770382,1727975433027,-5874.0,0.00014421,2]
[339770383,1727975433037,-150.0,0.00014421,2]
[339770384,1727975433046,-13507.0,0.00014421,2]
[339770385,1727975433055,-1148.0,0.00014421,2]
[339770386,1727975433065,-1898.69199996,0.00014885,2]
[339770387,1727975433074,-15273.18,0.00014895,2]
[339770388,1727975433085,-1000.0,0.00014914,2]
[339770389,1727975433095,-949.34599998,0.0001499,2]
[339770390,1727975433104,-4359.0,0.00015,2]
[339770391,1727975433115,-200.0,0.00015,2]
[339770392,1727975433133,-200.0,0.00015,2]
[339770393,1727975433143,-200.0,0.00015,2]
[339770394,1727975433153,-200.0,0.00015,2]
[339770395,1727975433169,-200.0,0.00015,2]
[339770396,1727975433179,-200.0,0.00015,2]
[339770397,1727975433188,-200.0,0.00015,2]
[339770398,1727975433202,-200.0,0.00015,2]
[339770399,1727975433214,-200.0,0.00015,2]
[339770400,1727975433224,-200.0,0.00015,2]
[339770401,1727975433233,-200.0,0.00015,2]
[339770402,1727975433242,-200.0,0.00015,2]
[339770403,1727975433252,-505.0,0.00015,2]
[339770404,1727975433262,-150.0,0.00015068,2]
[339770405,1727975433273,-750.0,0.000151,2]
[339770406,1727975433283,-526.5746173,0.00015224,2]
[339770407,1727975433293,-1140.59001563,0.0001562,2]
[339770408,1727975433308,-771.79254337,0.0001562,2]
[339770409,1727975433317,-1059.74011241,0.0001568,2]
[339770410,1727975433327,-200.0,0.000157,3]
[339770411,1727975433337,-404.47922494,0.00015702,2]
[339770412,1727975433348,-372.27,0.00015744,2]
[339770413,1727975433359,-500.0,0.00015839,2]
[339770414,1727975433369,-949.34599998,0.0001589,2]
[339770415,1727975433379,-1475.3221,0.000159,2]
[339770416,1727975433388,-5703.669,0.000159,2]
[339770417,1727975433399,-262.1817,0.000159,2]
[339770418,1727975433409,-1000.0,0.000159,2]
[339770419,1727975433425,-151.82,0.0001599,2]
[339770420,1727975433435,-195.47168911,0.00015999,2]
[339770421,1727975433445,-141830.14544448,0.00016,7]
[339770422,1727975433457,-20673.05827175,0.00016,7]
[339770423,1727975433468,-215.478619,0.00016,2]
[339770424,1727975433478,-215.478619,0.00016,2]
[339770425,1727975433488,-1200.0,0.00016,2]
[339770426,1727975433498,-199.3,0.00016,2]
[339770427,1727975433508,-429.0,0.00016,2]
[339770428,1727975433518,-150.0,0.00016,2]
[339770429,1727975433527,-20044.8708651,0.00016017,2]
[339770430,1727975433538,-7659.3780381,0.00016017,2]
[339770431,1727975433547,-1972.5686924,0.00016017,2]
[339770432,1727975433557,-12935.4577886,0.00016018,2]
[339770433,1727975433567,-168.75603806,0.00016018,2]
[339770434,1727975433576,-1938.76228799,0.00016028,2]
[339770435,1727975433588,-377.39865896,0.00016028,2]
[339770436,1727975433608,-535.511,0.00016028,2]
[339770440,1727975437642,-323.69520441,0.00016028,2]
[339770441,1727975437655,-290.08119832,0.00016028,2]
[339770442,1727975437673,-5314.22404625,0.00016028,2]
[339770443,1727975437684,-440.1604635,0.00016028,2]
[339770444,1727975437695,-516.99421439,0.00016028,2]
[339770445,1727975437706,-858.216,0.00016028,2]
[339770446,1727975437717,-10001.71316022,0.00016028,2]
[339770447,1727975437728,-4010.10564,0.00016028,2]
[339770448,1727975437739,-2704.63123454,0.00016028,2]
[339770449,1727975437750,-13157.2710806,0.00016028,2]
[339770450,1727975437761,-3873.33728602,0.00016028,2]
[339770451,1727975437771,-12935.4577886,0.00016029,2]
[339770452,1727975437781,-352.93407354,0.00016073,2]
[339770453,1727975437790,-12935.4577886,0.00016106,2]
[339770454,1727975437800,-9999.99,0.00016116,2]
[339770455,1727975437810,-1004.62999336,0.00016232,2]
[339770456,1727975437821,-200.0,0.0001634,2]
[339770457,1727975437831,-200.0,0.00016416,2]
[339770458,1727975437840,-247.37,0.00016438,2]
[339770459,1727975437850,-500.0,0.00016438,2]
[339770460,1727975437861,-4000.0,0.00016438,2]
[339770461,1727975437870,-709.77,0.00016438,2]
[339770462,1727975437880,-150.0,0.00016438,2]
[339770463,1727975437889,-150.0,0.00016438,2]
[339770464,1727975437899,-7450.0,0.00016463,7]
[339770465,1727975437909,-1000.0,0.00016571,2]
[339770466,1727975437924,-247.37,0.00016575,2]
[339770467,1727975437933,-200.0,0.000167,3]
[339770468,1727975437943,-247.37,0.00016712,2]
[339770469,1727975437953,-217.49,0.00016712,2]
[339770470,1727975437962,-247.37,0.00016849,2]
[339770471,1727975437971,-247.37,0.00016986,2]
[339770472,1727975437980,-247.37,0.00017123,2]
[339770474,1727975437989,-250.0,0.00017123,2]
[339770476,1727975437999,-247.37,0.0001726,2]
[339770478,1727975438008,-247.37,0.00017397,2]
[339770480,1727975438017,-291.92481207,0.00017409,2]
[339770483,1727975438027,-25870.9155773,0.00017411,2]
[339770485,1727975438036,-939.165,0.00017421,2]
[339770487,1727975438045,-624.0,0.00017421,2]
[339770489,1727975438055,-449.0,0.00017421,2]
[339770491,1727975438064,-934.0,0.00017421,2]
[339770492,1727975438073,-559.0,0.00017421,2]
[339770495,1727975438084,-810.0,0.00017421,2]
[339770497,1727975438095,-554.0,0.00017421,2]
[339770499,1727975438105,-1905.0,0.00017421,2]
[339770501,1727975438119,-3351.0,0.00017421,2]
[339770504,1727975438133,-1910.0,0.00017421,2]
[339770506,1727975438143,-5874.0,0.00017421,2]
[339770508,1727975438153,-150.0,0.00017421,2]
[339770510,1727975438165,-13507.0,0.00017421,2]
[339770512,1727975438177,-1148.0,0.00017421,2]
[339770514,1727975438186,-247.37,0.00017534,2]
[339770516,1727975438195,-504.05,0.00017534,2]
[339770518,1727975438205,-151.0,0.00017544,2]
[339770520,1727975438215,-1000.0,0.000176,5]
[339770522,1727975438224,-247.37,0.00017671,2]
[339770523,1727975438233,-200.0,0.000177,4]
[339770525,1727975438242,-247.37,0.00017808,2]
[339770527,1727975438252,-350.0,0.00017808,2]
[339770530,1727975438262,-12935.4577886,0.0001789,2]
[339770532,1727975438271,-20006.9617051,0.000179,2]
[339770533,1727975438280,-2017.17,0.000179,7]
[339770536,1727975438290,-247.37,0.00017945,2]
[339770537,1727975438299,-25870.9155773,0.0001799,2]
[339770539,1727975438308,-530.0,0.00018,2]
[339770542,1727975438318,-20058.87317218,0.00018,2]
[339770544,1727975438328,-1122.62369129,0.00018,2]
[339770546,1727975438337,-5570.13141884,0.00018,2]
[339770548,1727975438347,-1021.93298595,0.00018,2]
[339770550,1727975438356,-308.70537804,0.00018,5]
[339770552,1727975438365,-1250.0,0.00018,2]
[339770554,1727975438374,-23324.36303833,0.00018,2]
[339770556,1727975438383,-372.27,0.00018008,2]
[339770558,1727975438392,-247.37,0.00018082,2]
[339770560,1727975438401,-1679.15774272,0.000181,2]
[339770562,1727975438410,-247.37,0.00018219,2]
[339770564,1727975438423,-1000.0,0.00018228,2]
[339770566,1727975438433,-247.37,0.00018356,2]
[339770568,1727975438442,-200.0,0.00018468,2]
[339770570,1727975438451,-247.37,0.00018493,2]
[339770571,1727975438460,-346.01935549,0.00018493,2]
[339770572,1727975438470,-3000.0,0.000186,2]
[339770573,1727975438479,-247.37,0.0001863,2]
[339770574,1727975438488,-200.0,0.000187,5]
[339770575,1727975438498,-247.37,0.00018767,2]
[339770576,1727975438508,-247.37,0.00018904,2]
[339770577,1727975438518,-1004.62999336,0.00018947,2]
[339770578,1727975438528,-500.0,0.00019,2]
[339770579,1727975438538,-247.37,0.00019041,2]
[339770580,1727975438548,-158.59352518,0.0001909,2]
[339770581,1727975438557,-11758.79,0.00019151,2]
[339770582,1727975438566,-12935.4577886,0.0001916,2]
[339770583,1727975438575,-12935.4577886,0.00019168,2]
[339770584,1727975438585,-247.37,0.00019178,2]
[339770585,1727975438594,-750.0,0.00019178,2]
[339770586,1727975438604,-200.0,0.00019178,2]
[339770587,1727975438613,-200.0,0.00019178,2]
[339770588,1727975438622,-200.0,0.00019178,2]
[339770589,1727975438632,-200.0,0.00019178,2]
[339770590,1727975438643,-22750.7,0.00019178,2]
[339770591,1727975438653,-9438.7971386,0.0001919,2]
[339770592,1727975438664,-1125.0,0.000192,2]
[339770593,1727975438673,-150.67270602,0.0001924,3]
[339770594,1727975438683,-11893.68498235,0.00019257,2]
[339770595,1727975438694,-247.37,0.00019315,2]
[339770596,1727975438703,-12935.4577886,0.00019329,3]
[339770597,1727975438713,-9946.23,0.00019339,2]
[339770598,1727975438722,-178.74207767,0.00019352,2]
[339770599,1727975438733,-247.37,0.00019452,2]
[339770600,1727975438743,-247.56153948,0.00019589,2]
[339770601,1727975438753,-217.49,0.00019658,2]
[339770602,1727975438764,-200.0,0.000197,6]
[339770603,1727975438774,-12935.4577886,0.0001988,3]
[339770604,1727975438784,-1000.0,0.00019885,2]
[339770605,1727975438794,-25870.9155773,0.0001989,3]
[339770606,1727975438803,-14351.48724973,0.000199,2]
[339770607,1727975438812,-4632.76808807,0.000199,3]
[339770608,1727975438821,-215.478619,0.000199,2]
[339770609,1727975438830,-215.478619,0.000199,2]
[339770610,1727975438839,-11585.94138154,0.000199,2]
[339770611,1727975438848,-11585.94138151,0.000199,2]
[339770612,1727975438858,-11585.94138151,0.000199,2]
[339770613,1727975438867,-12935.4577886,0.00019943,3]
[339770614,1727975438876,-12935.4577886,0.0001998,3]
[339770615,1727975438885,-25870.9155773,0.0001999,3]
[339770616,1727975438894,-500.0,0.00019999,2]
[339770617,1727975438903,-573.45892455,0.00019999,2]
[339770618,1727975438913,-500.0,0.00019999,2]
[339770619,1727975438925,-3017.0,0.0002,15]
[339770620,1727975438934,-150.0,0.0002,2]
[339770621,1727975438943,-194.0,0.0002,2]
[339770622,1727975438952,-200.0,0.0002,2]
[339770623,1727975438961,-188.0,0.0002,2]
[339770624,1727975438970,-200.0,0.0002,2]
[339770625,1727975438979,-188.0,0.0002,2]
[339770626,1727975438988,-859.0,0.0002,2]
[339770627,1727975438997,-859.0,0.0002,2]
[339770628,1727975439006,-294.80236654,0.0002,2]
[339770629,1727975439016,-3787.0012015,0.0002,2]
[339770630,1727975439025,-6653.0,0.0002,2]
[339770631,1727975439035,-3950.0,0.0002,2]
[339770632,1727975439044,-24734.66419491,0.0002,2]
[339770633,1727975439054,-150.0,0.0002,20]
[339770634,1727975439064,-1300.0,0.0002,2]
[339770635,1727975439073,-419.874113,0.0002,2]
[339770636,1727975439082,-500.0,0.0002,2]
[339770637,1727975439092,-150.0,0.0002,2]
[339770638,1727975439101,-372.27,0.00020272,2]
[339770639,1727975439112,-12935.4577886,0.00020402,3]
[339770640,1727975439124,-12935.4577886,0.00020411,3]
[339770641,1727975439135,-447.0,0.00020421,2]
[339770642,1727975439146,-934.0,0.00020421,2]
[339770643,1727975439157,-559.0,0.00020421,2]
[339770644,1727975439168,-1119.933,0.00020421,2]
[339770645,1727975439178,-566.059,0.00020421,2]
[339770646,1727975439188,-545.196,0.00020421,2]
[339770647,1727975439198,-5874.0,0.00020421,2]
[339770648,1727975439208,-150.0,0.00020421,2]
[339770649,1727975439217,-13507.0,0.00020421,2]
[339770650,1727975439226,-373.226,0.00020421,2]
[339770651,1727975439235,-151.0,0.00020448,2]
[339770652,1727975439244,-939.12278638,0.00020463,7]
[339770653,1727975439257,-995.36520928,0.00020463,7]
[339770654,1727975439269,-353.01173433,0.00020463,7]
[339770655,1727975439280,-408.0085986,0.00020463,7]
[339770656,1727975439291,-1076.7,0.00020463,7]
[339770657,1727975439302,-2022.54094756,0.00020463,7]
[339770658,1727975439314,-1291.82707621,0.00020463,7]
[339770659,1727975439325,-746.48651101,0.00020463,7]
[339770660,1727975439336,-473.3383626,0.00020463,7]
[339770661,1727975439348,-193.59877403,0.00020463,7]
[339770662,1727975439357,-563.65192723,0.00020538,3]
[339770663,1727975439369,-534.33506897,0.00020538,3]
[339770664,1727975439380,-930.51620209,0.00020538,3]
[339770665,1727975439393,-5808.32989986,0.00020538,3]
[339770666,1727975439409,-425.26699569,0.00020538,3]
[339770667,1727975439422,-4673.35769476,0.00020538,3]
[339770668,1727975439431,-271.95,0.00020548,2]
[339770669,1727975439440,-174.25,0.00020548,2]
[339770671,1727975439450,-3360.25386408,0.00020548,2]
[339770673,1727975439461,-775.44461026,0.00020548,2]
[339770676,1727975439476,-441.66001173,0.00020548,2]
[339770678,1727975439488,-932.219486,0.00020548,2]
[339770681,1727975439502,-13346.76716289,0.00020548,2]
[339770684,1727975439514,-467.14661128,0.00020548,2]
[339770686,1727975439525,-866.10825376,0.00020548,2]
[339770688,1727975439534,-1186.61645849,0.00020559,4]
[339770690,1727975439544,-200.0,0.000207,7]
[339770691,1727975439553,-327.75587291,0.00020919,40]
[339770692,1727975439564,-3262.692916,0.00020989,2]
[339770693,1727975439574,-8196.446484,0.00020989,2]
[339770694,1727975439583,-157.1514,0.00020989,2]
[339770695,1727975439594,-376.61298,0.00020989,2]
[339770696,1727975439604,-233.20970939,0.00020989,2]
[339770697,1727975439681,-319.24299861,0.00020989,2]
[339770698,1727975439691,-850.31100141,0.0002099,3]
[339770699,1727975439703,-519.07829482,0.0002099,3]
[339770700,1727975439715,-37436.98406967,0.0002099,3]
[339770701,1727975439724,-222.98,0.00020992,2]
[339770702,1727975439734,-194.0,0.00021,3]
[339770703,1727975439744,-429.0,0.00021,3]
[339770704,1727975439753,-14811.0769413,0.00021,2]
[339770705,1727975439763,-20150.432265,0.00021,4]
[339770706,1727975439773,-4448.24343669,0.00021,4]
[339770707,1727975439784,-570.23685725,0.00021,4]
[339770708,1727975439796,-15132.4843548,0.00021,4]
[339770709,1727975439806,-8200.91256659,0.00021,4]
[339770710,1727975439817,-1387.38638775,0.00021,4]
[339770711,1727975439829,-1362.14790047,0.00021,4]
[339770712,1727975439844,-462.30819399,0.00021,4]
[339770713,1727975439856,-1553.4252,0.00021,4]
[339770714,1727975439867,-7184.34726806,0.00021,4]
[339770715,1727975439877,-647.0,0.00021,3]
[339770716,1727975439886,-429.0,0.00021,3]
[339770717,1727975439895,-194.0,0.00021,3]
[339770718,1727975439904,-150.0,0.00021,9]
[339770719,1727975439914,-504.05,0.0002137,2]
[339770720,1727975439924,-5925.8,0.0002137,2]
[339770721,1727975439934,-2655.61174426,0.00021398,7]
[339770722,1727975439943,-306.91284974,0.000214,2]
[339770725,1727975440037,-200.0,0.0002052,2]
[339770726,1727975440047,-643.77773422,0.000214,2]
[339770727,1727975440059,-1355.02815999,0.000214,2]
[339770728,1727975440070,-694.28125605,0.000214,2]
[339770729,1727975440079,-1000.0,0.000215,15]
[339770730,1727975440089,-150.0,0.000215,9]
[339770731,1727975440098,-1004.62999336,0.00021663,2]
[339770733,1727975440107,-4389.17592157,0.00021666,14]
[339770735,1727975440121,-610.82407843,0.00021666,14]
[339770736,1727975440133,-200.0,0.000217,7]
[339770737,1727975440143,-152.0,0.00021878,3]
[339770738,1727975440152,-153.95939065,0.000219,2]
[339770739,1727975440163,-152.79080492,0.000219,2]
[339770740,1727975440173,-325.0,0.000219,2]
[339770741,1727975440182,-200.0,0.000219,2]
[339770742,1727975440192,-45.36565541,0.00021917,2]
[339770743,1727975440204,-447.52815512,0.00021917,2]
[339770744,1727975440215,-507.10618947,0.00021917,2]
[339770745,1727975440223,-14.06574022,0.00021918,2]
[339770746,1727975440234,-1784.58425978,0.00021918,2]
[339770747,1727975440244,-250.0,0.00022,2]
[339770748,1727975440253,-2100.92790881,0.00022,3]
[339770749,1727975440263,-984.26559483,0.00022,2]
[339770750,1727975440272,-242.7510705,0.00022,2]
[339770751,1727975440281,-1131.06337263,0.00022,2]
[339770752,1727975440290,-636.12575576,0.00022,2]
[339770753,1727975440301,-15791.92748087,0.00022,2]
[339770754,1727975440313,-23212.11123996,0.00022,2]
[339770755,1727975440324,-18303.26007402,0.00022,2]
[339770756,1727975440333,-1350.0,0.00022,2]
[339770757,1727975440343,-150.0,0.00022,10]
[339770758,1727975440353,-227.67713924,0.0002211,2]
[339770759,1727975440363,-1000.0,0.00022466,2]
[339770760,1727975440373,-33581.49669294,0.000225,2]
[339770761,1727975440382,-150.0,0.000225,10]
[339770762,1727975440391,-372.27,0.00022536,2]
[339770763,1727975440401,-217.49,0.00022603,2]
[339770764,1727975440410,-200.0,0.000227,8]
[339770765,1727975440420,-6484.94375851,0.00022739,2]
[339770766,1727975440429,-1700.0,0.00022739,2]
[339770767,1727975440439,-371.02114795,0.00022739,2]
[339770768,1727975440448,-2500.0,0.00022747,5]
[339770769,1727975440458,-152.0,0.00022759,4]
[339770770,1727975440467,-158.59352518,0.00022786,2]
[339770771,1727975440477,-1680.98,0.000229,14]
[339770772,1727975440486,-215.478619,0.0002292,7]
[339770773,1727975440495,-215.478611,0.0002292,7]
[339770774,1727975440504,-9065.29068756,0.00023,2]
[339770775,1727975440515,-250.0,0.00023,2]
[339770776,1727975440524,-173.0,0.00023,2]
[339770777,1727975440534,-150.0,0.00023,11]
[339770778,1727975440543,-173.0,0.00023,2]
[339770779,1727975440552,-264.81981505,0.0002301,2]
[339770780,1727975440561,-49372.98930773,0.000232,2]
[339770781,1727975440570,-562.18307563,0.0002322,2]
[339770782,1727975440579,-5800.0,0.00023253,2]
[339770783,1727975440589,-5800.0,0.00023253,2]
[339770784,1727975440598,-5800.0,0.00023253,2]
[339770785,1727975440607,-5800.0,0.00023262,2]
[339770786,1727975440616,-5800.0,0.00023262,2]
[339770787,1727975440625,-5800.0,0.00023262,2]
[339770788,1727975440635,-5800.0,0.0002327,2]
[339770789,1727975440644,-5800.0,0.0002327,2]
[339770790,1727975440653,-5800.0,0.0002327,2]
[339770791,1727975440662,-5800.0,0.00023279,2]
[339770792,1727975440889,-5800.0,0.00023279,2]
[339770793,1727975440904,-5800.0,0.00023279,2]
[339770794,1727975440913,-5800.0,0.00023287,2]
[339770795,1727975440927,-3605.50732291,0.00023287,2]
[339770796,1727975441421,-669.980028,0.00023287,2]
[339770797,1727975441448,-526.17759152,0.00023287,2]
[339770798,1727975441459,-381.70492013,0.00023287,2]
[339770799,1727975441499,-616.63013744,0.00023287,2]
[339770800,1727975441509,-5195.21751104,0.00023287,2]
[339770801,1727975441520,-604.78248896,0.00023287,2]
[339770802,1727975441530,-5800.0,0.00023287,2]
[339770803,1727975441539,-173.0,0.00023288,2]
[339770804,1727975441548,-1500.0,0.000233,2]
[339770805,1727975441558,-920.0,0.00023421,2]
[339770806,1727975441567,-2411.341,0.00023421,2]
[339770807,1727975441576,-150.0,0.00023421,2]
[339770808,1727975441585,-12500.5403629,0.00023421,2]
[339770809,1727975441596,-1006.4596371,0.00023421,2]
[339770810,1727975441606,-150.0,0.000235,11]
[339770811,1727975441615,-152.0,0.00023641,5]
[339770812,1727975441625,-200.0,0.000237,9]
[339770813,1727975441635,-182.4324,0.0002398,2]
[339770814,1727975441645,-250.0,0.00024,2]
[339770815,1727975441654,-966.36011895,0.00024,2]
[339770816,1727975441664,-76305.25863135,0.00024,2]
[339770817,1727975441676,-241.2591785,0.00024,40]
[339770818,1727975441689,-1400.0,0.00024,2]
[339770819,1727975441698,-150.0,0.00024,12]
[339770820,1727975441708,-3062.00837609,0.0002408,2]
[339770821,1727975441718,-3000.0,0.000241,2]
[339770822,1727975441727,-173.0,0.00024164,2]
[339770823,1727975441737,-398.99744599,0.0002421,2]
[339770824,1727975441746,-3498.14376849,0.0002421,2]
[339770825,1727975441756,-1223.15663877,0.0002425,2]
[339770826,1727975441765,-1004.62999336,0.00024379,2]
[339770827,1727975441775,-335.11286675,0.0002442,2]
[339770828,1727975441785,-150.0,0.000245,12]
[339770829,1727975441795,-9417.3208474,0.00024519,2]
[339770830,1727975441804,-9417.3208474,0.00024519,2]
[339770831,1727975441814,-9417.3208474,0.00024519,2]
[339770832,1727975441824,-152.0,0.00024522,6]
[339770833,1727975441834,-1250.0,0.00024657,2]
[339770834,1727975441844,-163.0371104,0.00024658,2]
[339770835,1727975441854,-8566.78,0.00024658,4]